Cogmind - Beta 10.2 @@@ ROGUE MODE // 2020.12.21 @ 13:16:46 Player: Demise Result: Destroyed by 8R-AWN with 8R-AWN's Boregun Performance ------------- Evolutions (0) 0 Regions Visited (3) 600 Robots Destroyed (32) 160 Value Destroyed (637) 637 Prototype IDs (36) 720 Alien Tech Used (0) 0 Bonus (360) 360 TOTAL SCORE: 2477 Bonus ------- Follower Combat Kills 60 Aligned with FarCom 300 Cogmind --------- Core Integrity 0/250 Matter 300/300 Energy 96/100 System Corruption 0% Temperature Cool (0) Movement Rolling (90) Location -10/Exiles Parts ------- > --- POWER (1) -------- (None) > --- PROPULSION (2) --- Armored Wheel Armored Wheel > --- UTILITY (2) ------ Core Shielding Improved Utility Shielding > --- WEAPON (2) ------- Assault Rifle Light Assault Rifle > --- INVENTORY (4) ---- Core Shielding Assault Rifle Heavy Mace Peak State ------------ > --- POWER ------------ Light Nuclear Core > --- PROPULSION ------- Armored Wheel Armored Wheel > --- UTILITY ---------- Lightpack 2.0 > --- WEAPON ----------- Assault Rifle Datajack > --- INVENTORY -------- Light Treads Light Treads Armored Wheel Core Shielding Core Shielding Improved Utility Shielding Army-in-a-Box Assault Rifle Light Assault Rifle Light Assault Rifle Grenade Launcher Field Lobotomy Kit Heavy Mace [Rating: 37] Favorites ----------- Power Light Nuclear Core Engine Ion Engine Power Core Light Nuclear Core Propulsion Armored Wheel Treads Light Treads Wheel Armored Wheel Utility Large Storage Unit Storage Large Storage Unit Processor Signal Interpreter Protection Core Shielding Weapon Assault Rifle Energy Gun EM Pulse Gun Ballistic Gun Assault Rifle Launcher Grenade Launcher Special Weapon Mining Laser Special Melee Weapon Datajack Build | -11 -10 -10 -10 ------- Run | Scr Mat Min Exi Slots Evolved . | . . . . Power . | . . . . Propulsion . | . . . . Utility . | . . . . Weapon . | . . . . Parts Attached 41 | 8 18 2 13 Power 6 | 2 3 1 . Engine 4 | 2 2 . . Core 2 | . 1 1 . Reactor . | . . . . Propulsion 6 | 2 2 1 1 Treads 2 | 2 . . . Leg . | . . . . Wheel 4 | . 2 1 1 Hover . | . . . . Flight . | . . . . Utility 14 | 2 6 . 6 Device . | . . . . Storage 11 | 2 5 . 4 Processor 1 | . 1 . . Hackware . | . . . . Protection 2 | . . . 2 Artifact . | . . . . Weapon 15 | 2 7 . 6 Energy Gun 3 | 2 1 . . Energy Cannon . | . . . . Ballistic Gun 7 | . 4 . 3 Ballistic Cannon . | . . . . Launcher 3 | . 1 . 2 Special Weapon 1 | . 1 . . Impact Weapon . | . . . . Slashing Weapon . | . . . . Piercing Weapon . | . . . . Special Melee Weapon 1 | . . . 1 Unidentified Prototypes . | . . . . Parts Lost 4 | . 2 . 2 Power 1 | . . . 1 Propulsion . | . . . . Utility . | . . . . Weapon 3 | . 2 . 1 Highest Loss Streak 2 | . 1 . 2 Average Slot Usage (%) 97 | . 99 99 94 Engine 2 | . 6 1 . Core 10 | . 7 12 13 Wheel 27 | . 27 28 28 Storage 24 | . 28 28 16 Protection 2 | . . . 6 Energy Gun 4 | . 11 . . Ballistic Gun 18 | . 16 28 15 Launcher 1 | . . . 4 Special Melee Weapon 2 | . . . 7 Naked Turns . | . . . . Heaviest Build 56 | 14 34 33 56 Greatest Support 40 | 40 40 24 24 Greatest Overweight (x) 2 | 1 1 1 2 Average Overweight (x) . | . . 1 . Largest Inventory Capacity 24 | 6 14 14 24 Average Capacity 12 | 5 12 14 14 Most Carried 19 | 5 14 14 19 Average Carried 11 | 2 11 13 11 Final Capacity 14 | 6 14 14 4 Final Carried 14 | 4 14 14 3 Class Distribution -------------------- 96% | Mutant 3% | Hauler-Mutant Dominant Class ---------------- Mutant | -10/Materials Mutant | -10/Mines Mutant | -10/Exiles Resources | -11 -10 -10 -10 ----------- Run | Scr Mat Min Exi Matter Collected 1143 | 329 492 86 236 Remotely . | . . . . Salvage Created 1042 | 163 804 69 6 Parts 89 | 18 65 6 . Haulers Intercepted 2 | . 2 . . Recyclers Shooed . | . . . . Parts Field Recycled . | . . . . Retrieved Matter . | . . . . Parts Self-Destructed . | . . . . Prevented . | . . . . Kills | -11 -10 -10 -10 ------- Run | Scr Mat Min Exi Combat Hostiles Destroyed 18 | . 16 1 1 Guns 12 | . 11 1 . AOE 6 | . 5 . 1 Classes Destroyed 9 | 3 5 . 1 Worker 4 | 2 1 1 . Builder 1 | . 1 . . Tunneler 4 | 3 . 1 . Hauler 2 | . 2 . . Recycler 1 | 1 . . . Watcher 3 | . 3 . . Swarmer 3 | . 3 . . Grunt 14 | . 13 1 . Assembled 1 | . . . 1 Best Kill Streak 7 | 2 7 1 1 Combat Bots Only 3 | . 3 1 1 Max Kills in Single Turn 3 | 1 3 1 1 Gunslinging . | . . . . Exploded 3 | . 3 . 1 Melee . | . . . . Uniques/NPCs Destroyed . | . . . . Combat | -11 -10 -10 -10 -------- Run | Scr Mat Min Exi Damage Taken 978 | . 385 87 506 Core 254 | . 64 10 180 Absorbed by Shields . | . . . . Core Remaining (%) 100 | 100 . . . Volleys Fired 95 | 9 60 11 15 Largest 2 | 2 2 2 2 Hottest 100 | 90 100 40 40 Shots Fired 174 | 18 107 22 27 Gun 169 | 18 104 22 25 Cannon . | . . . . Launcher 3 | . 1 . 2 Special 2 | . 2 . . Kinetic 101 | . 54 22 25 Thermal 11 | 9 2 . . Explosive 3 | . 1 . 2 Electromagnetic 59 | 9 50 . . Robot Hit Streak 13 | 7 13 12 5 Robot Miss Streak 4 | 1 3 2 4 Penetration Max . | . . . . Secondary Targets 1 | . . 1 . Max Gunslinging Chain 1 | . . 1 . Shots Hit Robots 116 | 11 73 14 18 Core Hits 47 | 6 33 6 2 Critical Hits . | . . . . Critical Kills . | . . . . Critical Parts Destroyed . | . . . . Melee Attacks 4 | . . . 4 Impact . | . . . . Slashing . | . . . . Piercing . | . . . . Sneak Attacks 4 | . . . 4 Combat Hostiles . | . . . . Follow-up Attacks . | . . . . Damage Inflicted 1752 | 164 1224 193 171 Guns 1498 | 164 998 193 143 Cannons . | . . . . Explosions 254 | . 226 . 28 Melee . | . . . . Ramming . | . . . . Kinetic 868 | . 532 193 143 Thermal 175 | 62 113 . . Explosive 141 | . 113 . 28 Electromagnetic 568 | 102 466 . . Impact . | . . . . Slashing . | . . . . Piercing . | . . . . Highest Corruption . | . . . . Average Corruption . | . . . . Corruption Purged . | . . . . Overload Shots . | . . . . Overflow Damage . | . . . . Projectiles . | . . . . Explosions . | . . . . Melee . | . . . . Knockbacks . | . . . . Impact . | . . . . Kinetic . | . . . . Secondary . | . . . . Self-Inflicted Damage 76 | . 76 . . Shots 2 | . 2 . . Rammed . | . . . . Targets Rammed . | . . . . Kicked . | . . . . Crushed . | . . . . Highest Temperature 120 | 120 105 5 . Average Temperature 40 | 41 41 5 . Received Heat Transfer 219 | . 171 48 . Siege Activations . | . . . . Robots Corrupted . | . . . . Combat Hostiles . | . . . . Parts Fried 1 | . 1 . . Impact Corruptions . | . . . . Robots Melted . | . . . . Combat Hostiles . | . . . . Parts Melted . | . . . . Heat Transferred 385 | 185 200 . . Parts Sabotaged . | . . . . Parts Stolen . | . . . . Parts Stripped . | . . . . Power Chain Reactions 2 | . 2 . . Missiles Intercepted . | . . . . Alert | -11 -10 -10 -10 ------- Run | Scr Mat Min Exi Peak Influence 219 | 30 219 118 . Initial 78 | . 19 78 . Average 93 | 15 107 88 . Maximum Alert Level 1 | . 1 . . Low Security (%) 94 | 100 91 100 . Level 1 5 | . 8 . . Level 2 . | . . . . Level 3 . | . . . . Level 4 . | . . . . Level 5 . | . . . . High Security . | . . . . Max Security . | . . . . Squads Dispatched 5 | . 4 1 . Investigation 5 | . 4 1 . Extermination . | . . . . Reinforcement . | . . . . Assault . | . . . . Garrison . | . . . . Intercept . | . . . . Construction Impeded . | . . . . Haulers Reinforced . | . . . . Stealth | -11 -10 -10 -10 --------- Run | Scr Mat Min Exi Distress Signals 3 | . 3 . . Communications Jammed . | . . . . Distress Signals . | . . . . Times Spotted 26 | . 20 4 2 Peak Tracking Total 9 | . 3 2 9 Tactical Retreats 2 | . 2 . . Traps | -11 -10 -10 -10 ------- Run | Scr Mat Min Exi Traps Triggered 1 | . 1 . . Indirectly . | . . . . Trap Hack Attempts . | . . . . Triggered . | . . . . Disarmed . | . . . . Reprogrammed . | . . . . Reused . | . . . . Traps Extracted . | . . . . Installed . | . . . . Triggered . | . . . . Exploded 3 | . . . 3 Machines | -11 -10 -10 -10 ---------- Run | Scr Mat Min Exi Machines Disabled 4 | . . 1 3 Max in Single Turn 1 | . . 1 1 Machines Sabotaged . | . . . . Garrisons Compromised . | . . . . Overloaded Fab Kills . | . . . . Fab Network Shutdowns . | . . . . Hacking | -11 -10 -10 -10 --------- Run | Scr Mat Min Exi Machines Accessed 14 | . 10 2 2 Terminals 8 | . 7 1 . Fabricators . | . . . . Repair Stations 1 | . 1 . . Recycling Units 2 | . 2 . . Scanalyzers . | . . . . Garrison Access . | . . . . Total Hacks 45 | . 38 5 2 Successful 26 | . 22 2 2 Failed 18 | . 15 3 . Catastrophic 2 | . 1 1 . Database Lockouts 1 | . 1 . . Manual 26 | . 20 5 1 Terminals 30 | . 26 4 . Fabricators . | . . . . Repair Stations 3 | . 3 . . Recycling Units 9 | . 9 . . Scanalyzers . | . . . . Garrison Access . | . . . . Terminal Hacks 12 | . 8 2 2 Record 1 | . . . 1 Part Schematic 1 | . . 1 . Robot Analysis 2 | . 2 . . Open Door 1 | . . 1 . Branch Access Points 1 | . 1 . . Locate Traps 3 | . 3 . . Hauler Manifests 1 | . 1 . . Zone Layout 1 | . 1 . . EX-Prototype ID Bank 1 | . . . 1 Fabricator Hacks . | . . . . Repair Station Hacks 2 | . 2 . . Scan Component 1 | . 1 . . Repair 1 | . 1 . . Recycling Unit Hacks 5 | . 5 . . Process 1 | . 1 . . Report Inventory 2 | . 2 . . Retrieve Matter 1 | . 1 . . Retrieve Components 1 | . 1 . . Scanalyzer . | . . . . Garrison Access Hacks . | . . . . Unauthorized Hacks 7 | . 7 . . Terminals 6 | . 6 . . Track 1 | . 1 . . Botnet 4 | . 4 . . Operators 1 | . 1 . . Fabricators . | . . . . Repair Stations . | . . . . Recycling Units 1 | . 1 . . Tunnel 1 | . 1 . . Scanalyzers . | . . . . Garrison Access . | . . . . Data Cores Recovered . | . . . . Used . | . . . . Hacking Detections 11 | . 10 1 . Full Trace Events 3 | . 2 1 . Feedback Events . | . . . . Feedback Blocked . | . . . . Robot Schematics Acquired . | . . . . Robots Built . | . . . . Matter . | . . . . Time . | . . . . Total Robot Build Rating . | . . . . Part Schematics Acquired 1 | . . 1 . Parts Built . | . . . . Matter . | . . . . Time . | . . . . Total Part Build Rating . | . . . . Parts Repaired 1 | . 1 . . Time 26 | . 26 . . Parts Recycled . | . . . . Recycled Matter 15 | . 15 . . Retrieved Matter 15 | . 15 . . Retrieved Components 10 | . 10 . . Parts Scanalyzed . | . . . . Part Schematics Acquired . | . . . . Parts Damaged . | . . . . Bothacking | -11 -10 -10 -10 ------------ Run | Scr Mat Min Exi Used RIF Installer . | . . . . Robots Hacked 4 | . . . 4 Non-combat 3 | . . . 3 Combat 1 | . . . 1 Robot Hacks Applied 4 | . . . 4 parse_system 4 | . . . 4 Relay Couplers Released . | . . . . Robots Rewired . | . . . . Allies Hacked . | . . . . Hacks Repelled . | . . . . Allies | -11 -10 -10 -10 -------- Run | Scr Mat Min Exi Total Allies 3 | . . 3 . Largest Group 3 | . . 3 1 Highest-Rated Group 40 | . . 40 16 Highest-Rated Ally 16 | . . 16 16 Total Orders 5 | . . . 5 STAY 3 | . . . 3 FOLLOW 2 | . . . 2 Ally Attacks 21 | . . 14 7 Total Damage 285 | . . 211 74 Kills 4 | . . 2 2 Allies Corrupted . | . . . . Allies Melted . | . . . . Intel | -11 -10 -10 -10 ------- Run | Scr Mat Min Exi Robot Analysis Total 2 | . 2 . . Derelict Logs Recovered 1 | . . 1 . Drone Launches . | . . . . Drone Recoveries . | . . . . Exploration | -11 -10 -10 -10 ------------- Run | Scr Mat Min Exi Turns Passed 2775 | 174 1154 605 842 Spaces Moved 2202 | 82 856 558 706 Core 3 | 3 . . . Treads 93 | 79 14 . . Legs . | . . . . Wheels 2106 | . 842 558 706 Hover . | . . . . Flight . | . . . . Fastest Speed 50 | 50 90 100 90 Average Speed 101 | 157 99 100 98 Slowest Speed 160 | 160 160 100 110 Overloaded Moves . | . . . . Propulsion Burnouts . | . . . . Robots Hopped . | . . . . Cave-ins Triggered . | . . . . Exploration Rate (%) 68 | 5 98 99 71 Regions Visited 3 Branch Regions 2 Pre-discovered Areas 4 | . 1 2 1 Known Exits Taken 1 | . 1 . . Unknown Exits Taken 2 | 1 . 1 . Scrap Searched 2 | . . 2 . Spaces Dug 2 | . 2 . . Terrain Destroyed 30 | . 22 . 8 Melee . | . . . . Projectile 2 | . 2 . . AOE 28 | . 20 . 8 Terrain Rammed . | . . . . Walls Destroyed . | . . . . Machines Disabled . | . . . . Actions | -11 -10 -10 -10 --------- Run | Scr Mat Min Exi Total 2578 | 107 1052 584 835 Wait 120 | . 77 7 36 Move 2199 | 81 855 557 706 Hop . | . . . . Pick Up 61 | 6 25 3 27 Fast Attach 19 | 7 5 1 6 Attach 8 | . 4 1 3 Detach 7 | . 3 . 4 Swap 14 | 1 9 . 4 Drop 51 | 3 14 4 30 Fire 95 | 9 60 11 15 Melee 4 | . . . 4 Ram . | . . . . Kick . | . . . . Crush . | . . . . Escape Stasis . | . . . . Rewire . | . . . . Trap . | . . . . Miscellaneous . | . . . . Route ------- -11/Scrapyard -10/Materials (discovered 4 exits: *Mat x3 / *Min) -10/Mines (discovered 3 exits: *Mat x2 / *Exi) -10/Exiles (discovered 1 exit: [*Min]) History --------- Turn | Location | Event 16 | -11/Scrapyard | Discovered new exit (range 15) 175 | -11/Scrapyard | Entered Materials 262 | -10/Materials | Repaired Mining Laser 305 | -10/Materials | Build established: Mutant 373 | -10/Materials | Discovered new exit (range 6) 410 | -10/Materials | Identified exit to Mines 568 | -10/Materials | Discovered new exit (range 15) 998 | -10/Materials | Discovered new exit (range 8) 1058 | -10/Materials | Central database locked down 1182 | -10/Materials | Discovered new exit (range 10) 1206 | -10/Materials | Identified exit to Materials 1329 | -10/Materials | Entered Mines 1347 | -10/Mines | Discovered exit to Materials (range 11) 1357 | -10/Mines | Met a Derelict shopkeep closing up shop 1489 | -10/Mines | Assisted by bots powering up and referring to "LRC-V3" 1650 | -10/Mines | Discovered exit to Materials (range 16) 1713 | -10/Mines | Learned location of Zion (-6) 1926 | -10/Mines | Deemed a non-threat by the Exiles lab entrance 1926 | -10/Mines | Discovered new exit (range 5) 1934 | -10/Mines | Entered Exiles 1934 | -10/Exiles | Accompanied by 1 ally 1961 | -10/Exiles | Met 8R-AWN 1979 | -10/Exiles | Met EX-HEX 2049 | -10/Exiles | Met EX-DEC 2145 | -10/Exiles | Discovered new exit (range 11) 2239 | -10/Exiles | Met EX-BIN 2257 | -10/Exiles | Aligned with FarCom system 2258 | -10/Exiles | Given EX-Vault access code 2281 | -10/Exiles | Opened EX-Vault 2290 | -10/Exiles | Found Lightpack 2.0 2298 | -10/Exiles | Found Army-in-a-Box 2300 | -10/Exiles | Found Field Lobotomy Kit 2329 | -10/Exiles | Warned to stay clear of 0b10 Research branches 2650 | -10/Exiles | Attacked by the Exiles 2754 | -10/Exiles | Core integrity fell below 50% 2772 | -10/Exiles | Core integrity fell below 20% 2776 | -10/Exiles | Destroyed by 8R-AWN with 8R-AWN's Boregun Last Messages --------------- 02767_ Penetrated by HV Slug. 02767_ HV Slug penetrates Earth. 02769_ Penetrated by HV Slug. 02769_ HV Slug penetrates Earth. 02769_ Penetrated by HV Slug. 02769_ HV Slug penetrates Earth. 02770_ Extracted 6 matter. 02771_ Penetrated by HV Slug. 02771_ HV Slug penetrates Earth. 02771_ Penetrated by HV Slug. 02771_ Assault Rifle destroyed. 02771_ HV Slug penetrates Earth. 02773_ Extracted 10 matter. 02774_ Extracted 4 matter. 02774_ Penetrated by HV Slug. 02774_ HV Slug penetrates Earth. 02774_ Penetrated by HV Slug. 02774_ HV Slug penetrates Earth. 02776_ Extracted 4 matter. 02776_ Penetrated by HV Slug. Map ----- +----------------------------------------------------+ | ?????????????????????????????????????????????????? | | ?????????#####???????????????????????????????????? | | ????????## ##??????????????????????????????????? | | ????????# #??????????????????????????????????? | | ????????# < #??????????????????????????????????? | | ????????# ###????????????????????????????????? | | ????????# ! #????????????????????????????????? | | ????????# ##????????????????????????????????? | | ????????## ! #?????????????????????????????????? | | ?????????# !!! ##????????????????????????????????? | | ?????????## |!| #????????????#######?????????????? | | ??????????# / #######??????#!!! "#?????????????? | | ??????????# #""##?????# "#?????????????? | | ??????????## #?????# "#?????????????? | | ???????????##" ##???## ""#????????????## | | ???????????#"" #####" ""#???????????? | | ???????????#### ##" ""#????????????" | | ??????????????## #"" #?????????????"" | | ???????????????#"## #?????????????"" | | ???????????????####### ##????????????"" | | ?????????????????????### "# # ????????? | | ???????????????########" #????????" | | ???????????????# !!"""" g #????????# | | ???????????????#! !!="###" ""##???### | | ???????????????# ] [ #?## ""#####X# | | ???????????????# ==@##??#" | | ???????????????# """"" #;#???#"# % | | ???????????????#########; ???#### * | | ???????????????????????? #??????### | | ???????????????????????## #????????### | | ????????????????????????# #??????????## | | ????????????????????????# ???????????## | | ????????????????????????# #????????????##" | | ????????????????????????# #?????????????#""" | | ????????????????????????? ?????????????##" | | ????????????????????????? ?????????????#"" | | ????????????????????????? ????????????##""" | | ?????????????????????????#????????????#""" | | ??????????????????????????????????????#""" | | ??????????????????????????????????????#"" | | ??????????????????????????????????????#""" | | ??????????????????????????????????????#"" | | ??????????????????????????????????????##"" | | ???????????????????????????????????????#"""" | | ???????????????????????????????????????## | | ????????????????????????????????????????#" | | ????????????????????????????????????????#"""" | | ????????????????????????????????????????#"" | | ????????????????????????????????????????#" | | ????????????????????????????????????????#""" | +----------------------------------------------------+ Best States ------------- Heat Dissipation 25 Energy Generation 14 Energy Capacity 250 Matter Stores 496 Matter Capacity 500 Sight Range 16 Terrain Scan Density 10 Core Shielding 20 Utility Shielding 66 Evasion (%) 42 Recoil Reduction 2 Item Schematics ----------------- Hcp. Storage Unit | -10/Mines | Hacked Robot Schematics ------------------ None Fabricated ------------ Nothing Alien Tech Used ----------------- None Achievements -------------- None Challenges ------------ None Game ------ Seed HardcellWarpChainsword Manual? 0 Play Time 00:28:53 Cumulative 145.0 hours Start 2020.12.21 @ 12:50:31 End 2020.12.21 @ 13:16:46 Sessions 1 Manual Loads 0 Difficulty Rogue Special Mode None Game No. 131 Rogue 131 Adventurer 0 Explorer 0 Win Type - Total 0 Types 0/0/0/0/0/0/0/0/0 Lore% 54 Gallery% 65 Achievement% 54 Wizard Run 0 Options --------- ASCII 0 Keyboard 1 Movement Numpad Keybinds 0 Fullscreen 1 Font 12/Terminus Map View 83x54 Tactical HUD 1 Map Filters NONE Filters NONE Steam 1 RUN: 0bd85eaf-81e3-4290-9c16-ab0ea309c789